[Event "Titled Tuesday Blitz May 24 Early 2022"]
[White "Fromm, Marius"]
[Black "Matinian, Nikita"]
[WhiteFideId "12993190"]
[BlackFideId "24129100"]
[WhiteElo "2500"]
[BlackElo "2422"]
[Result "1/2-1/2"]
[Round "03"]
[TimeControl "180+1"]
[Date "2022.05.25"]
[WhiteClock "0:00:03"]
[BlackClock "0:00:31"]

1. e4 {[%clk 0:03:00]}  c5 {[%clk 0:02:58]} 2. Nf3 {[%clk 0:03:01]}  d6 {[%clk 0:02:58]} 3. d4 {[%clk 0:03:01]}  cxd4 {[%clk 0:02:59]} 4. Nxd4 {[%clk 0:03:02]}  Nf6 {[%clk 0:02:59]} 5. Nc3 {[%clk 0:03:03]}  g6 {[%clk 0:02:58]} 6. Be3 {[%clk 0:02:58]}  Nc6 {[%clk 0:02:58]} 7. f3 {[%clk 0:02:53]}  h5 {[%clk 0:02:57]} 8. Qd2 {[%clk 0:02:53]}  Nxd4 {[%clk 0:02:57]} 9. Bxd4 {[%clk 0:02:53]}  Bh6 {[%clk 0:02:58]} 10. Qf2 {[%clk 0:02:46]}  Qa5 {[%clk 0:02:54]} 11. Bc4 {[%clk 0:02:42]}  Be6 {[%clk 0:02:40]} 12. Bb3 {[%clk 0:02:21]}  Bxb3 {[%clk 0:02:39]} 13. cxb3 {[%clk 0:02:20]}  e5 {[%clk 0:02:38]} 14. Be3 {[%clk 0:02:16]}  Bxe3 {[%clk 0:02:38]} 15. Qxe3 {[%clk 0:02:17]}  h4 {[%clk 0:02:38]} 16. O-O-O {[%clk 0:02:10]}  Nh5 {[%clk 0:02:14]} 17. Rxd6 {[%clk 0:01:54]}  Nf4 {[%clk 0:02:14]} 18. Rhd1 {[%clk 0:01:31]}  Rc8 {[%clk 0:02:09]} 19. Kb1 {[%clk 0:01:26]}  Kf8 {[%clk 0:01:56]} 20. g3 {[%clk 0:01:24]}  hxg3 {[%clk 0:01:56]} 21. hxg3 {[%clk 0:01:25]}  Ne6 {[%clk 0:01:54]} 22. Rxe6 {[%clk 0:01:12]}  fxe6 {[%clk 0:01:50]} 23. Qg5 {[%clk 0:01:12]}  Qb6 {[%clk 0:00:57]} 24. Qf6+ {[%clk 0:01:03]}  Kg8 {[%clk 0:00:57]} 25. Qxg6+ {[%clk 0:01:02]}  Kf8 {[%clk 0:00:57]} 26. Rd7 {[%clk 0:00:26]}  Rh1+ {[%clk 0:00:57]} 27. Nd1 {[%clk 0:00:26]}  Rxd1+ {[%clk 0:00:38]} 28. Rxd1 {[%clk 0:00:27]}  Qc6 {[%clk 0:00:34]} 29. Qf6+ {[%clk 0:00:21]}  Ke8 {[%clk 0:00:33]} 30. Qh8+ {[%clk 0:00:10]}  Ke7 {[%clk 0:00:30]} 31. Qg7+ {[%clk 0:00:09]}  Ke8 {[%clk 0:00:30]} 32. Qg8+ {[%clk 0:00:06]}  Ke7 {[%clk 0:00:30]} 33. Qg7+ {[%clk 0:00:04]}  Ke8 {[%clk 0:00:30]} 34. Qg8+ {[%clk 0:00:02]}  Ke7 {[%clk 0:00:31]} 35. Qg7+ {[%clk 0:00:03]} 1/2-1/2


[Site "https://www.chess.com"]

[Event "Titled Tuesday Blitz May 24 Early 2022"]
[White "Garcia Garcia, Alejandro"]
[Black "Gatterer, Florian"]
[WhiteFideId "3516334"]
[BlackFideId "811688"]
[WhiteElo "2142"]
[BlackElo "2218"]
[Result "1-0"]
[Round "03"]
[TimeControl "180+1"]
[Date "2022.05.25"]
[WhiteClock "0:00:31"]
[BlackClock "0:00:05"]

1. Nf3 {[%clk 0:03:00]}  g6 {[%clk 0:02:57]} 2. g3 {[%clk 0:03:01]}  Bg7 {[%clk 0:02:54]} 3. Bg2 {[%clk 0:03:02]}  c5 {[%clk 0:02:54]} 4. O-O {[%clk 0:03:02]}  Nc6 {[%clk 0:02:54]} 5. c3 {[%clk 0:03:03]}  e5 {[%clk 0:02:53]} 6. e3 {[%clk 0:03:03]}  Nge7 {[%clk 0:02:50]} 7. d4 {[%clk 0:03:03]}  cxd4 {[%clk 0:02:49]} 8. exd4 {[%clk 0:03:03]}  exd4 {[%clk 0:02:48]} 9. Nxd4 {[%clk 0:03:02]}  O-O {[%clk 0:02:43]} 10. Be3 {[%clk 0:02:56]}  d5 {[%clk 0:02:32]} 11. Na3 {[%clk 0:02:54]}  Nf5 {[%clk 0:02:21]} 12. Nxf5 {[%clk 0:02:53]}  Bxf5 {[%clk 0:02:15]} 13. Qxd5 {[%clk 0:02:52]}  Qf6 {[%clk 0:01:55]} 14. Qb5 {[%clk 0:02:44]}  Rab8 {[%clk 0:01:42]} 15. Bf4 {[%clk 0:02:43]}  a6 {[%clk 0:01:42]} 16. Qb6 {[%clk 0:02:42]}  Rbc8 {[%clk 0:01:22]} 17. Qxb7 {[%clk 0:02:38]}  Ne5 {[%clk 0:01:22]} 18. Bxe5 {[%clk 0:02:34]}  Qxe5 {[%clk 0:01:21]} 19. Qxa6 {[%clk 0:02:34]}  Rb8 {[%clk 0:01:15]} 20. Rfe1 {[%clk 0:02:31]}  Qc5 {[%clk 0:01:11]} 21. Qe2 {[%clk 0:02:29]}  Qb6 {[%clk 0:01:07]} 22. Nc4 {[%clk 0:02:28]}  Qa6 {[%clk 0:01:07]} 23. Bf1 {[%clk 0:02:15]}  h5 {[%clk 0:01:02]} 24. Ne3 {[%clk 0:02:09]}  Qa5 {[%clk 0:00:55]} 25. b4 {[%clk 0:02:04]}  Qe5 {[%clk 0:00:55]} 26. Nxf5 {[%clk 0:02:04]}  Qxf5 {[%clk 0:00:54]} 27. Rac1 {[%clk 0:02:03]}  Rfc8 {[%clk 0:00:53]} 28. Qd2 {[%clk 0:01:50]}  Kh7 {[%clk 0:00:46]} 29. Rc2 {[%clk 0:01:39]}  Rd8 {[%clk 0:00:39]} 30. Qc1 {[%clk 0:01:28]}  Rdc8 {[%clk 0:00:39]} 31. a3 {[%clk 0:01:24]}  h4 {[%clk 0:00:39]} 32. c4 {[%clk 0:01:23]}  hxg3 {[%clk 0:00:38]} 33. hxg3 {[%clk 0:01:22]}  Bd4 {[%clk 0:00:37]} 34. c5 {[%clk 0:01:17]}  Kg7 {[%clk 0:00:36]} 35. Rd1 {[%clk 0:01:08]}  Be5 {[%clk 0:00:31]} 36. Bg2 {[%clk 0:01:06]}  Rh8 {[%clk 0:00:28]} 37. Rc4 {[%clk 0:01:02]}  Bf6 {[%clk 0:00:27]} 38. Rf4 {[%clk 0:01:00]}  Qh5 {[%clk 0:00:19]} 39. Re1 {[%clk 0:00:47]}  Rbd8 {[%clk 0:00:14]} 40. c6 {[%clk 0:00:42]}  Rhe8 {[%clk 0:00:07]} 41. Rxe8 {[%clk 0:00:41]}  Rd1+ {[%clk 0:00:07]} 42. Re1 {[%clk 0:00:36]}  Rxc1 {[%clk 0:00:06]} 43. Rxc1 {[%clk 0:00:37]}  Bg5 {[%clk 0:00:07]} 44. c7 {[%clk 0:00:35]}  Bxf4 {[%clk 0:00:07]} 45. c8=Q {[%clk 0:00:34]}  Bxc1 {[%clk 0:00:06]} 46. Qxc1 {[%clk 0:00:34]}  Qe5 {[%clk 0:00:06]} 47. a4 {[%clk 0:00:33]}  Qd4 {[%clk 0:00:05]} 48. Qb1 {[%clk 0:00:32]}  Kf6 {[%clk 0:00:05]} 49. a5 {[%clk 0:00:32]}  Qd1+ {[%clk 0:00:05]} 50. Qxd1 {[%clk 0:00:31]} 1-0


[Site "https://www.chess.com"]

[Event "Titled Tuesday Blitz May 24 Early 2022"]
[White "Garv Gaur"]
[Black "Li, Hui"]
[WhiteFideId "45030839"]
[BlackFideId "15400310"]
[WhiteElo "1950"]
[BlackElo "1954"]
[Result "1-0"]
[Round "03"]
[TimeControl "180+1"]
[Date "2022.05.25"]
[WhiteClock "0:02:40"]
[BlackClock "0:00:02"]

1. d4 {[%clk 0:03:00]}  Nf6 {[%clk 0:02:07]} 2. Nf3 {[%clk 0:03:00]}  d5 {[%clk 0:02:07]} 3. c4 {[%clk 0:03:00]}  e6 {[%clk 0:02:07]} 4. g3 {[%clk 0:03:00]}  Be7 {[%clk 0:02:07]} 5. Bg2 {[%clk 0:03:00]}  O-O {[%clk 0:02:07]} 6. O-O {[%clk 0:03:00]}  dxc4 {[%clk 0:02:08]} 7. Qc2 {[%clk 0:03:00]}  a6 {[%clk 0:02:08]} 8. a4 {[%clk 0:03:00]}  Bd7 {[%clk 0:02:08]} 9. Ne5 {[%clk 0:03:00]}  Bc6 {[%clk 0:02:07]} 10. Nxc6 {[%clk 0:03:00]}  Nxc6 {[%clk 0:02:07]} 11. e3 {[%clk 0:03:00]}  Na5 {[%clk 0:02:05]} 12. Nd2 {[%clk 0:03:00]}  c5 {[%clk 0:02:02]} 13. dxc5 {[%clk 0:02:59]}  Rc8 {[%clk 0:02:01]} 14. b4 {[%clk 0:02:59]}  cxb3 {[%clk 0:01:58]} 15. Nxb3 {[%clk 0:02:58]}  Nxb3 {[%clk 0:01:46]} 16. Qxb3 {[%clk 0:02:59]}  Bxc5 {[%clk 0:01:39]} 17. Rd1 {[%clk 0:02:57]}  Qb6 {[%clk 0:01:33]} 18. Qxb6 {[%clk 0:02:56]}  Bxb6 {[%clk 0:01:32]} 19. Bxb7 {[%clk 0:02:56]}  Rc2 {[%clk 0:00:42]} 20. a5 {[%clk 0:02:51]}  Bc7 {[%clk 0:00:34]} 21. Bxa6 {[%clk 0:02:51]}  Ra8 {[%clk 0:00:20]} 22. Bd3 {[%clk 0:02:50]}  Rc3 {[%clk 0:00:19]} 23. a6 {[%clk 0:02:48]}  Nd5 {[%clk 0:00:19]} 24. Bb2 {[%clk 0:02:42]}  Rb3 {[%clk 0:00:17]} 25. Bd4 {[%clk 0:02:41]}  Nb4 {[%clk 0:00:11]} 26. Bc4 {[%clk 0:02:41]}  Nc2 {[%clk 0:00:03]} 27. Bxb3 {[%clk 0:02:40]}  Nxa1 {[%clk 0:00:04]} 28. Rxa1 {[%clk 0:02:41]}  g6 {[%clk 0:00:03]} 29. a7 {[%clk 0:02:41]}  e5 {[%clk 0:00:02]} 30. Bc5 {[%clk 0:02:41]}  Kg7 {[%clk 0:00:02]} 31. Bd5 {[%clk 0:02:41]}  e4 {[%clk 0:00:02]} 32. Bxa8 {[%clk 0:02:40]} 1-0


[Site "https://www.chess.com"]

[Event "Titled Tuesday Blitz May 24 Early 2022"]
[White "Golizadeh, Asghar"]
[Black "Hakemi, Arman"]
[WhiteFideId "12505269"]
[BlackFideId "22520805"]
[WhiteElo "2403"]
[BlackElo "2115"]
[Result "0-1"]
[Round "03"]
[TimeControl "180+1"]
[Date "2022.05.25"]
[WhiteClock "0:00:51"]
[BlackClock "0:01:09"]

1. e4 {[%clk 0:02:59]}  e5 {[%clk 0:02:59]} 2. Nf3 {[%clk 0:02:58]}  Nf6 {[%clk 0:02:58]} 3. d3 {[%clk 0:02:55]}  Nc6 {[%clk 0:02:57]} 4. g3 {[%clk 0:02:56]}  d5 {[%clk 0:02:58]} 5. Qe2 {[%clk 0:02:56]}  Bc5 {[%clk 0:02:42]} 6. Bg2 {[%clk 0:02:55]}  dxe4 {[%clk 0:02:41]} 7. dxe4 {[%clk 0:02:55]}  O-O {[%clk 0:02:42]} 8. O-O {[%clk 0:02:55]}  h6 {[%clk 0:02:43]} 9. c3 {[%clk 0:02:48]}  a5 {[%clk 0:02:42]} 10. Rd1 {[%clk 0:02:45]}  Qe7 {[%clk 0:02:42]} 11. Be3 {[%clk 0:02:33]}  Nxe4 {[%clk 0:02:27]} 12. Nbd2 {[%clk 0:02:27]}  Nxd2 {[%clk 0:02:22]} 13. Nxd2 {[%clk 0:02:28]}  Bxe3 {[%clk 0:02:21]} 14. Qxe3 {[%clk 0:02:27]}  Bg4 {[%clk 0:02:21]} 15. Re1 {[%clk 0:02:25]}  Rad8 {[%clk 0:02:21]} 16. Nc4 {[%clk 0:02:20]}  Qe6 {[%clk 0:02:07]} 17. Nxe5 {[%clk 0:02:12]}  Nxe5 {[%clk 0:02:07]} 18. Qxe5 {[%clk 0:02:13]}  Qxe5 {[%clk 0:02:08]} 19. Rxe5 {[%clk 0:02:14]}  Rd2 {[%clk 0:02:07]} 20. b4 {[%clk 0:01:58]}  axb4 {[%clk 0:02:05]} 21. cxb4 {[%clk 0:01:59]}  c6 {[%clk 0:02:01]} 22. a4 {[%clk 0:01:56]}  Rfd8 {[%clk 0:01:58]} 23. Ree1 {[%clk 0:01:38]}  Rb2 {[%clk 0:01:56]} 24. Reb1 {[%clk 0:01:28]}  Rdd2 {[%clk 0:01:28]} 25. Rxb2 {[%clk 0:01:28]}  Rxb2 {[%clk 0:01:29]} 26. b5 {[%clk 0:01:21]}  Bd7 {[%clk 0:01:26]} 27. bxc6 {[%clk 0:01:17]}  bxc6 {[%clk 0:01:11]} 28. a5 {[%clk 0:01:16]}  Rb7 {[%clk 0:01:11]} 29. a6 {[%clk 0:01:05]}  Ra7 {[%clk 0:01:11]} 30. Kf1 {[%clk 0:01:06]}  Kf8 {[%clk 0:01:11]} 31. Ke2 {[%clk 0:01:06]}  Ke7 {[%clk 0:01:12]} 32. Kd3 {[%clk 0:01:05]}  Kd6 {[%clk 0:01:12]} 33. Kc4 {[%clk 0:01:02]}  Bc8 {[%clk 0:01:12]} 34. Rd1+ {[%clk 0:00:55]}  Kc7 {[%clk 0:01:13]} 35. Re1 {[%clk 0:00:51]}  Rxa6 {[%clk 0:01:08]} 36. Re7+ {[%clk 0:00:51]}  Kd6 {[%clk 0:01:08]} 37. Rxf7 {[%clk 0:00:51]}  Be6+ {[%clk 0:01:09]} 0-1


[Site "https://www.chess.com"]

[Event "Titled Tuesday Blitz May 24 Early 2022"]
[White "Goltsev, Dmitry"]
[Black "Keymer, Vincent"]
[WhiteFideId "24176710"]
[BlackFideId "12940690"]
[WhiteElo "2258"]
[BlackElo "2548"]
[Result "0-1"]
[Round "03"]
[TimeControl "180+1"]
[Date "2022.05.24"]
[WhiteClock "0:00:03"]
[BlackClock "0:00:05"]

1. e4 {[%clk 0:02:59]}  c6 {[%clk 0:03:00]} 2. d4 {[%clk 0:02:59]}  d5 {[%clk 0:03:00]} 3. Nc3 {[%clk 0:02:59]}  dxe4 {[%clk 0:03:01]} 4. Nxe4 {[%clk 0:03:00]}  Nf6 {[%clk 0:03:02]} 5. Nxf6+ {[%clk 0:03:00]}  exf6 {[%clk 0:03:03]} 6. c3 {[%clk 0:03:00]}  Bd6 {[%clk 0:03:02]} 7. Bd3 {[%clk 0:03:00]}  O-O {[%clk 0:03:02]} 8. Qc2 {[%clk 0:03:01]}  Re8+ {[%clk 0:03:03]} 9. Be3 {[%clk 0:03:01]}  h5 {[%clk 0:03:01]} 10. Ne2 {[%clk 0:03:01]}  Nd7 {[%clk 0:02:49]} 11. h3 {[%clk 0:02:59]}  Nf8 {[%clk 0:02:47]} 12. g4 {[%clk 0:02:56]}  h4 {[%clk 0:02:43]} 13. O-O-O {[%clk 0:02:55]}  Be6 {[%clk 0:02:43]} 14. c4 {[%clk 0:02:53]}  Rc8 {[%clk 0:02:09]} 15. Kb1 {[%clk 0:02:43]}  b5 {[%clk 0:01:58]} 16. c5 {[%clk 0:02:40]}  Bc7 {[%clk 0:01:46]} 17. Rhg1 {[%clk 0:02:29]}  Qd7 {[%clk 0:01:27]} 18. Nf4 {[%clk 0:02:15]}  Bxf4 {[%clk 0:01:20]} 19. Bxf4 {[%clk 0:02:16]}  Qd5 {[%clk 0:01:20]} 20. b3 {[%clk 0:02:11]}  Qf3 {[%clk 0:01:02]} 21. Bd6 {[%clk 0:02:07]}  Bd5 {[%clk 0:01:02]} 22. g5 {[%clk 0:02:04]}  f5 {[%clk 0:00:38]} 23. Bxf5 {[%clk 0:01:47]}  Be4 {[%clk 0:00:29]} 24. Bxe4 {[%clk 0:01:45]}  Rxe4 {[%clk 0:00:30]} 25. d5 {[%clk 0:01:35]}  cxd5 {[%clk 0:00:25]} 26. Rxd5 {[%clk 0:01:36]}  Re2 {[%clk 0:00:19]} 27. Rf5 {[%clk 0:01:26]}  Qxh3 {[%clk 0:00:10]} 28. Qxe2 {[%clk 0:01:26]}  Qxf5+ {[%clk 0:00:10]} 29. Qc2 {[%clk 0:01:26]}  Qf3 {[%clk 0:00:05]} 30. Bxf8 {[%clk 0:01:10]}  Rxf8 {[%clk 0:00:06]} 31. g6 {[%clk 0:00:54]}  h3 {[%clk 0:00:06]} 32. Re1 {[%clk 0:00:45]}  h2 {[%clk 0:00:05]} 33. Qd1 {[%clk 0:00:42]}  fxg6 {[%clk 0:00:04]} 34. Qxf3 {[%clk 0:00:39]}  Rxf3 {[%clk 0:00:05]} 35. Rh1 {[%clk 0:00:35]}  Rxf2 {[%clk 0:00:05]} 36. c6 {[%clk 0:00:36]}  Rf6 {[%clk 0:00:01]} 37. Rxh2 {[%clk 0:00:28]}  Rxc6 {[%clk 0:00:02]} 38. Kb2 {[%clk 0:00:28]}  a6 {[%clk 0:00:02]} 39. Ka3 {[%clk 0:00:22]}  a5 {[%clk 0:00:03]} 40. Rg2 {[%clk 0:00:20]}  Kf7 {[%clk 0:00:02]} 41. Rg5 {[%clk 0:00:18]}  Rb6 {[%clk 0:00:02]} 42. b4 {[%clk 0:00:18]}  a4 {[%clk 0:00:01]} 43. Kb2 {[%clk 0:00:19]}  Kf6 {[%clk 0:00:02]} 44. Rc5 {[%clk 0:00:18]}  g5 {[%clk 0:00:03]} 45. Kc3 {[%clk 0:00:18]}  g4 {[%clk 0:00:04]} 46. Kd4 {[%clk 0:00:18]}  Re6 {[%clk 0:00:02]} 47. Rxb5 {[%clk 0:00:14]}  g3 {[%clk 0:00:02]} 48. Rc5 {[%clk 0:00:14]}  g2 {[%clk 0:00:03]} 49. Rc1 {[%clk 0:00:14]}  Kf5 {[%clk 0:00:03]} 50. Rg1 {[%clk 0:00:12]}  Re2 {[%clk 0:00:04]} 51. b5 {[%clk 0:00:12]}  Kf4 {[%clk 0:00:04]} 52. b6 {[%clk 0:00:07]}  Kf3 {[%clk 0:00:04]} 53. Rb1 {[%clk 0:00:07]}  Rb2 {[%clk 0:00:04]} 54. Rxb2 {[%clk 0:00:05]}  g1=Q+ {[%clk 0:00:04]} 55. Kc3 {[%clk 0:00:04]}  Qc5+ {[%clk 0:00:04]} 56. Kd2 {[%clk 0:00:03]}  Qd4+ {[%clk 0:00:05]} 57. Kc2 {[%clk 0:00:03]}  Ke2 {[%clk 0:00:05]} 0-1


[Site "https://www.chess.com"]

[Event "Titled Tuesday Blitz May 24 Early 2022"]
[White "Golubev, Mikhail"]
[Black "Vasquez Schroeder, Rodrigo"]
[WhiteFideId "14100983"]
[BlackFideId "3400042"]
[WhiteElo "2593"]
[BlackElo "2828"]
[Result "1/2-1/2"]
[Round "03"]
[TimeControl "180+1"]
[Date "2022.05.25"]
[WhiteClock "0:00:07"]
[BlackClock "0:01:15"]

1. e4 {[%clk 0:03:00]}  c5 {[%clk 0:03:00]} 2. Nf3 {[%clk 0:03:00]}  d6 {[%clk 0:03:00]} 3. d4 {[%clk 0:03:01]}  cxd4 {[%clk 0:03:01]} 4. Nxd4 {[%clk 0:03:01]}  Nf6 {[%clk 0:03:01]} 5. Nc3 {[%clk 0:03:01]}  a6 {[%clk 0:03:02]} 6. Bc4 {[%clk 0:03:01]}  e6 {[%clk 0:03:03]} 7. O-O {[%clk 0:03:01]}  b5 {[%clk 0:03:03]} 8. Bb3 {[%clk 0:03:01]}  Be7 {[%clk 0:03:04]} 9. Qf3 {[%clk 0:02:59]}  Qb6 {[%clk 0:03:04]} 10. Be3 {[%clk 0:02:58]}  Qb7 {[%clk 0:03:04]} 11. Qg3 {[%clk 0:02:58]}  b4 {[%clk 0:02:54]} 12. Na4 {[%clk 0:02:57]}  Nbd7 {[%clk 0:02:55]} 13. f3 {[%clk 0:02:57]}  O-O {[%clk 0:02:54]} 14. Rac1 {[%clk 0:02:56]}  Ne5 {[%clk 0:02:43]} 15. c4 {[%clk 0:02:46]}  bxc3 {[%clk 0:02:40]} 16. Nxc3 {[%clk 0:02:36]}  Bd7 {[%clk 0:02:40]} 17. f4 {[%clk 0:02:36]}  Nd3 {[%clk 0:02:38]} 18. Rcd1 {[%clk 0:02:14]}  Nc5 {[%clk 0:02:35]} 19. e5 {[%clk 0:02:05]}  dxe5 {[%clk 0:02:32]} 20. fxe5 {[%clk 0:02:04]}  Nfe4 {[%clk 0:02:26]} 21. Nxe4 {[%clk 0:02:02]}  Nxe4 {[%clk 0:02:26]} 22. Qf3 {[%clk 0:01:51]}  Rab8 {[%clk 0:02:24]} 23. Bc2 {[%clk 0:01:44]}  Nc5 {[%clk 0:02:24]} 24. Qh3 {[%clk 0:01:38]}  g6 {[%clk 0:02:20]} 25. Bh6 {[%clk 0:01:29]}  Qxb2 {[%clk 0:02:19]} 26. Bxf8 {[%clk 0:01:22]}  Rxf8 {[%clk 0:02:20]} 27. Rf2 {[%clk 0:01:03]}  Qb4 {[%clk 0:02:13]} 28. Kh1 {[%clk 0:00:58]}  Rd8 {[%clk 0:02:08]} 29. Rxf7 {[%clk 0:00:53]}  h5 {[%clk 0:01:46]} 30. Rxe7 {[%clk 0:00:51]}  Ne4 {[%clk 0:01:44]} 31. Qh4 {[%clk 0:00:34]}  Nf2+ {[%clk 0:01:23]} 32. Qxf2 {[%clk 0:00:32]}  Qxe7 {[%clk 0:01:24]} 33. Qf6 {[%clk 0:00:21]}  Qxf6 {[%clk 0:01:23]} 34. exf6 {[%clk 0:00:21]}  Kf7 {[%clk 0:01:24]} 35. Nc6 {[%clk 0:00:19]}  Rc8 {[%clk 0:01:23]} 36. Ne5+ {[%clk 0:00:19]}  Kxf6 {[%clk 0:01:23]} 37. Nxd7+ {[%clk 0:00:19]}  Ke7 {[%clk 0:01:24]} 38. Ba4 {[%clk 0:00:18]}  Rc4 {[%clk 0:01:23]} 39. Nb6 {[%clk 0:00:17]}  Rb4 {[%clk 0:01:24]} 40. Nc8+ {[%clk 0:00:17]}  Kf6 {[%clk 0:01:23]} 41. Bb3 {[%clk 0:00:18]}  a5 {[%clk 0:01:23]} 42. Re1 {[%clk 0:00:18]}  e5 {[%clk 0:01:23]} 43. Nd6 {[%clk 0:00:18]}  a4 {[%clk 0:01:23]} 44. Ne4+ {[%clk 0:00:18]}  Kf5 {[%clk 0:01:24]} 45. Ng3+ {[%clk 0:00:18]}  Kf4 {[%clk 0:01:23]} 46. Bc2 {[%clk 0:00:18]}  Rb2 {[%clk 0:01:23]} 47. Re4+ {[%clk 0:00:17]}  Kg5 {[%clk 0:01:22]} 48. Rxe5+ {[%clk 0:00:16]}  Kf6 {[%clk 0:01:23]} 49. Rc5 {[%clk 0:00:16]}  Rxa2 {[%clk 0:01:21]} 50. Ne4+ {[%clk 0:00:16]}  Ke6 {[%clk 0:01:21]} 51. h4 {[%clk 0:00:16]}  Rb2 {[%clk 0:01:18]} 52. Kh2 {[%clk 0:00:16]}  Rb4 {[%clk 0:01:18]} 53. Bd3 {[%clk 0:00:15]}  Rd4 {[%clk 0:01:18]} 54. Rc3 {[%clk 0:00:15]}  Ke5 {[%clk 0:01:18]} 55. Nd2 {[%clk 0:00:15]}  Kf4 {[%clk 0:01:18]} 56. Nf1 {[%clk 0:00:11]}  Ke5 {[%clk 0:01:16]} 57. Rc5+ {[%clk 0:00:11]}  Kd6 {[%clk 0:01:16]} 58. Rc3 {[%clk 0:00:12]}  Rxh4+ {[%clk 0:01:17]} 59. Kg3 {[%clk 0:00:11]}  Rg4+ {[%clk 0:01:17]} 60. Kf3 {[%clk 0:00:10]}  g5 {[%clk 0:01:18]} 61. Nd2 {[%clk 0:00:10]}  Rf4+ {[%clk 0:01:18]} 62. Ke3 {[%clk 0:00:09]}  Kd5 {[%clk 0:01:19]} 63. Nf3 {[%clk 0:00:09]}  Rg4 {[%clk 0:01:18]} 64. Bc4+ {[%clk 0:00:08]}  Rxc4 {[%clk 0:01:18]} 65. Rd3+ {[%clk 0:00:08]}  Kc5 {[%clk 0:01:17]} 66. Nxg5 {[%clk 0:00:09]}  Rg4 {[%clk 0:01:16]} 67. Ne4+ {[%clk 0:00:08]}  Kb4 {[%clk 0:01:16]} 68. Kf3 {[%clk 0:00:08]}  a3 {[%clk 0:01:15]} 69. Rd4+ {[%clk 0:00:07]}  Kb3 {[%clk 0:01:16]} 70. Rd3+ {[%clk 0:00:07]}  Kb2 {[%clk 0:01:15]} 71. Rd2+ {[%clk 0:00:07]}  Kb3 {[%clk 0:01:16]} 72. Rd3+ {[%clk 0:00:07]}  Kb2 {[%clk 0:01:15]} 73. Rd2+ {[%clk 0:00:07]}  Kb3 {[%clk 0:01:15]} 74. Rd3+ {[%clk 0:00:07]} 1/2-1/2


[Site "https://www.chess.com"]

[Event "Titled Tuesday Blitz May 24 Early 2022"]
[White "Gronnestad, Anita"]
[Black "Aggelis, Nikolaos"]
[WhiteFideId "1502972"]
[BlackFideId "4213220"]
[WhiteElo "1933"]
[BlackElo "2154"]
[Result "0-1"]
[Round "03"]
[TimeControl "180+1"]
[Date "2022.05.25"]
[WhiteClock "0:00:30"]
[BlackClock "0:01:28"]

1. d4 {[%clk 0:03:00]}  Nf6 {[%clk 0:02:54]} 2. c4 {[%clk 0:03:01]}  g6 {[%clk 0:02:52]} 3. Nf3 {[%clk 0:03:00]}  d5 {[%clk 0:02:52]} 4. Nc3 {[%clk 0:03:00]}  Bg7 {[%clk 0:02:53]} 5. g3 {[%clk 0:03:00]}  O-O {[%clk 0:02:52]} 6. Bg2 {[%clk 0:03:00]}  dxc4 {[%clk 0:02:53]} 7. Ne5 {[%clk 0:02:59]}  Nc6 {[%clk 0:02:52]} 8. Nxc6 {[%clk 0:02:51]}  bxc6 {[%clk 0:02:53]} 9. Bxc6 {[%clk 0:02:51]}  Bh3 {[%clk 0:02:54]} 10. Bxa8 {[%clk 0:02:45]}  Qxa8 {[%clk 0:02:55]} 11. f3 {[%clk 0:02:44]}  Rd8 {[%clk 0:02:55]} 12. Be3 {[%clk 0:02:38]}  c5 {[%clk 0:02:54]} 13. d5 {[%clk 0:02:25]}  e6 {[%clk 0:02:36]} 14. Bxc5 {[%clk 0:02:10]}  Nxd5 {[%clk 0:02:31]} 15. Bd4 {[%clk 0:02:01]}  Nxc3 {[%clk 0:02:27]} 16. bxc3 {[%clk 0:02:01]}  e5 {[%clk 0:02:27]} 17. Qa4 {[%clk 0:01:24]}  exd4 {[%clk 0:02:21]} 18. O-O-O {[%clk 0:01:20]}  d3 {[%clk 0:02:15]} 19. Qxc4 {[%clk 0:01:17]}  d2+ {[%clk 0:02:15]} 20. Kc2 {[%clk 0:01:08]}  Rc8 {[%clk 0:02:06]} 21. Qb3 {[%clk 0:00:50]}  Rxc3+ {[%clk 0:02:01]} 22. Qxc3 {[%clk 0:00:50]}  Bxc3 {[%clk 0:02:02]} 23. Kxc3 {[%clk 0:00:51]}  Qc6+ {[%clk 0:01:56]} 24. Kxd2 {[%clk 0:00:51]}  Qd5+ {[%clk 0:01:56]} 25. Ke3 {[%clk 0:00:49]}  Qxa2 {[%clk 0:01:56]} 26. Ra1 {[%clk 0:00:47]}  Qe6+ {[%clk 0:01:46]} 27. Kf2 {[%clk 0:00:45]}  Qb6+ {[%clk 0:01:40]} 28. Ke1 {[%clk 0:00:39]}  Qd4 {[%clk 0:01:36]} 29. Rd1 {[%clk 0:00:36]}  Qc5 {[%clk 0:01:32]} 30. g4 {[%clk 0:00:36]}  Bg2 {[%clk 0:01:31]} 31. Kd2 {[%clk 0:00:30]}  Bxh1 {[%clk 0:01:28]} 0-1


[Site "https://www.chess.com"]

[Event "Titled Tuesday Blitz May 24 Early 2022"]
[White "Gurevich, Dmitry"]
[Black "Skuhala, Barbara"]
[WhiteFideId "2000407"]
[BlackFideId "14605465"]
[WhiteElo "2506"]
[BlackElo "2155"]
[Result "1-0"]
[Round "03"]
[TimeControl "180+1"]
[Date "2022.05.25"]
[WhiteClock "0:00:55"]
[BlackClock "0:00:18"]

1. d4 {[%clk 0:03:00]}  Nf6 {[%clk 0:02:59]} 2. c4 {[%clk 0:02:59]}  e6 {[%clk 0:02:59]} 3. Nf3 {[%clk 0:02:58]}  d5 {[%clk 0:02:56]} 4. Nc3 {[%clk 0:02:57]}  Be7 {[%clk 0:02:56]} 5. g3 {[%clk 0:02:54]}  c6 {[%clk 0:02:55]} 6. Bg2 {[%clk 0:02:52]}  O-O {[%clk 0:02:54]} 7. O-O {[%clk 0:02:50]}  Re8 {[%clk 0:02:54]} 8. b3 {[%clk 0:02:48]}  Nbd7 {[%clk 0:02:53]} 9. Qc2 {[%clk 0:02:41]}  Nf8 {[%clk 0:02:53]} 10. Bb2 {[%clk 0:02:37]}  Ng6 {[%clk 0:02:53]} 11. e4 {[%clk 0:02:31]}  dxe4 {[%clk 0:02:52]} 12. Nxe4 {[%clk 0:02:30]}  Nxe4 {[%clk 0:02:52]} 13. Qxe4 {[%clk 0:02:29]}  Bf6 {[%clk 0:02:50]} 14. Ne5 {[%clk 0:02:25]}  Bxe5 {[%clk 0:02:47]} 15. dxe5 {[%clk 0:02:24]}  Qc7 {[%clk 0:02:41]} 16. Rad1 {[%clk 0:02:18]}  Rb8 {[%clk 0:02:39]} 17. h4 {[%clk 0:02:16]}  Bd7 {[%clk 0:02:33]} 18. h5 {[%clk 0:02:14]}  Nf8 {[%clk 0:02:33]} 19. c5 {[%clk 0:02:11]}  h6 {[%clk 0:02:22]} 20. Rd6 {[%clk 0:02:05]}  Rbd8 {[%clk 0:02:19]} 21. Rfd1 {[%clk 0:02:03]}  Bc8 {[%clk 0:02:20]} 22. f4 {[%clk 0:02:02]}  Rd7 {[%clk 0:02:15]} 23. Qd4 {[%clk 0:01:59]}  Rde7 {[%clk 0:02:13]} 24. b4 {[%clk 0:01:55]}  a5 {[%clk 0:02:11]} 25. a3 {[%clk 0:01:53]}  axb4 {[%clk 0:02:11]} 26. axb4 {[%clk 0:01:53]}  Qb8 {[%clk 0:02:08]} 27. g4 {[%clk 0:01:48]}  Nh7 {[%clk 0:01:55]} 28. Be4 {[%clk 0:01:45]}  Nf8 {[%clk 0:01:51]} 29. Kh2 {[%clk 0:01:44]}  Qa7 {[%clk 0:01:45]} 30. Rg1 {[%clk 0:01:31]}  Qa2 {[%clk 0:01:41]} 31. Rg2 {[%clk 0:01:30]}  Qb3 {[%clk 0:01:40]} 32. g5 {[%clk 0:01:24]}  hxg5 {[%clk 0:01:38]} 33. Rxg5 {[%clk 0:01:23]}  Nh7 {[%clk 0:01:11]} 34. Rg2 {[%clk 0:01:22]}  Nf8 {[%clk 0:00:54]} 35. Bc2 {[%clk 0:01:20]}  Qf3 {[%clk 0:00:50]} 36. Bd1 {[%clk 0:01:14]}  Qf1 {[%clk 0:00:40]} 37. Be2 {[%clk 0:01:13]}  Qb1 {[%clk 0:00:35]} 38. Bd3 {[%clk 0:01:08]}  Qe1 {[%clk 0:00:33]} 39. Rf2 {[%clk 0:00:56]}  Bd7 {[%clk 0:00:17]} 40. Bc3 {[%clk 0:00:55]}  Bc8 {[%clk 0:00:18]} 41. Bxe1 {[%clk 0:00:55]} 1-0


[Site "https://www.chess.com"]